lending/lending_fUSD_20251021
["ID","MTS","AMOUNT","RATE_DAILY","PERIOD"]
[391957815,1761030633223,-4110.20728209,0.000342,2]
[391957816,1761030633238,-3347.03212495,0.000342,2]
[391957817,1761030633251,-1650.0,0.000342,2]
[391957818,1761030633264,-3349.02820744,0.000342,2]
[391957820,1761030633274,-10650.97179256,0.000342,2]
[391957896,1761030637887,-150.0,0.00033514,3]
[391957897,1761030637898,-1841.77821182,0.000342,2]
[391957900,1761030637995,-4477.0,0.000342,2]
[391957901,1761030638032,-1179.4,0.000342,2]
[391957932,1761030639991,-150.0,0.00034014,3]
[391957934,1761030640000,-2119.59192112,0.000342,2]
[391957935,1761030640016,-523.49738546,0.000342,2]
[391957938,1761030640033,-297.7262798,0.000342,2]
[391957941,1761030640044,-682.60523184,0.000342,2]
[391957943,1761030640056,-915.6857705,0.000342,2]
[391957946,1761030640067,-1389.06737945,0.000342,2]
[391957957,1761030640267,-534.05,0.000342,2]
[391958012,1761030643187,-594.27179784,0.000342,2]
[391958021,1761030643571,-13063.68811387,0.000342,2]
[391958062,1761030646118,-541.35,0.000342,2]
[391958063,1761030646130,-3525.70857398,0.000342,2]
[391958064,1761030646140,-1818.526426,0.00034261,7]
[391958316,1761030661777,200.0,0.00034438,120]
[391958356,1761030664080,300.0,0.00017774,120]
[391958381,1761030665690,195.0,0.00025178,120]
[391958400,1761030666786,4000.0,0.00017774,120]
[391958403,1761030666895,2454.21598235,0.00025178,120]
[391959567,1761030725012,195.0,0.00023397,120]
[391959571,1761030725111,195.0,0.00028458,120]
[391961061,1761030782699,195.0,0.00020076,120]
[391961065,1761030782788,195.0,0.00023543,120]
[391961069,1761030782919,195.0,0.00028244,120]
[391962463,1761030842016,195.0,0.00019898,120]
[391962466,1761030842126,195.0,0.00023462,120]
[391962471,1761030842261,195.0,0.0002754,120]
[391964553,1761030971227,200.0,0.00034438,120]
[391964556,1761031292915,5327.645779,0.00034441,120]
[391964557,1761031508158,104500.0,0.00015,2]
[391964560,1761031565033,4257.77218532,0.00011,2]
[391964564,1761031689168,3661.72345765,0.0001439,2]
[391964573,1761031832232,-1453.37762631,0.000149,2]
[391964574,1761031832243,-1281.26864055,0.000149,2]
[391964575,1761031832252,-395.05069508,0.000149,2]
[391964576,1761031832262,-395.05069501,0.00014902,2]
[391964577,1761031832271,-246.14494824,0.00014917,2]
[391964578,1761031832330,-20.80210262,0.00014917,2]
[391964579,1761031832340,-195.0,0.00014949,2]
[391964580,1761031832349,-1281.26864055,0.00014959,2]
[391964581,1761031832359,-38.81558595,0.00014998,2]
[391964664,1761031840147,-261.18441405,0.00014998,2]
[391964665,1761031840158,-195.0,0.00014999,2]
[391964666,1761031840168,-199.29971028,0.00014999,2]
[391964667,1761031840178,-425.81587567,0.00014999,2]
[391964675,1761031931633,50000.0,0.0003445,34]
[391964676,1761031936042,50000.0,0.0003445,35]
[391964677,1761031961022,-349.91888388,0.000147,2]
[391964680,1761032286515,176.42,0.00013699,2]
[391964681,1761032363919,-1500.0,0.000149,3]
[391964683,1761032412405,1551.86611413,0.00034458,30]
[391964686,1761032855047,10000.0,0.00034464,120]
[391964696,1761033032516,-195.0,0.00014733,2]
[391964697,1761033032525,-195.0,0.00014734,2]
[391964698,1761033032535,-45.16924651,0.000149,2]
[391964712,1761033040484,-160.74,0.00014732,2]
[391964713,1761033040495,-651.271,0.0001485,2]
[391964714,1761033040506,-115.81240027,0.000149,2]
[391964715,1761033040516,-318.526426,0.000149,3]
[391964716,1761033040526,-786.32181445,0.000149,3]
[391964717,1761033040538,-1713.67818555,0.000149,3]
[391964718,1761033040549,-453.52181445,0.000149,2]
[391964719,1761033040963,-277.37000008,0.000149,2]
[391964722,1761033046513,-484.28378206,0.000149,2]
[391964723,1761033046527,-92.86426708,0.000149,2]
[391964724,1761033046538,-10600.06692331,0.000149,2]
[391964725,1761033046549,-153.66248429,0.000149,2]
[391964726,1761033046561,-964.44573935,0.000149,3]
[391964727,1761033046654,-1535.55426065,0.000149,3]
[391964728,1761033046664,-2779.54105124,0.000149,2]
[391964729,1761033046673,-780.65475728,0.000149,2]
[391964730,1761033046683,-177.96470058,0.000149,2]
[391964731,1761033046694,-1308.03986367,0.00014901,2]
[391964732,1761033046704,-1308.03986367,0.00014902,2]
[391964733,1761033046713,-1308.03986367,0.00014903,2]
[391964734,1761033046723,-1308.03986367,0.00014904,2]
[391964735,1761033046735,-1308.03986367,0.00014905,2]
[391964736,1761033046745,-1308.03986367,0.00014906,2]
[391964737,1761033046755,-1308.03986367,0.00014907,2]
[391964738,1761033046765,-1308.03986367,0.00014908,2]
[391964739,1761033046774,-1308.03986367,0.00014909,2]
[391964740,1761033046784,-74.18412433,0.00014999,2]
[391964741,1761033046794,-224.48179763,0.00014999,2]
[391964742,1761033046803,-321.71393783,0.00014999,2]
[391964743,1761033046812,-500.0,0.00014999,2]
[391964744,1761033046822,-470.72834521,0.00014999,2]
[391964745,1761033046831,-500.0,0.00014999,2]
[391964746,1761033046840,-500.0,0.00014999,2]
[391964747,1761033046849,-500.0,0.00014999,2]
[391964748,1761033046859,-500.0,0.00014999,2]
[391964749,1761033046869,-500.0,0.00014999,2]
[391964750,1761033046881,-500.0,0.00014999,2]
[391964751,1761033046891,-220.11949499,0.00014999,2]
[391964752,1761033046900,-190180.22819765,0.00015,2]
[391964754,1761033213991,162.6,7.225e-05,2]
[391964755,1761033214043,162.6,8.128e-05,2]
[391964756,1761033214229,162.6,9.032e-05,2]
[391964757,1761033214421,162.6,9.935e-05,2]
[391964758,1761033214635,162.6,0.00010838,2]
[391964759,1761033214821,162.6,0.00011741,2]
[391964760,1761033215019,162.6,0.00012644,2]
[391964761,1761033215207,162.6,0.00013547,2]
[391964762,1761033284273,-162.6,0.00014451,2]
[391964763,1761033284295,-254.31040157,0.00014575,2]
[391964764,1761033284318,-901.68,0.000147,2]
[391964765,1761033284343,-558.05,0.00014717,2]
[391964766,1761033284365,-300.0,0.00014899,2]
[391964767,1761033284386,-150.0,0.00014899,2]
[391964768,1761033284408,-1453.37762631,0.000149,2]
[391964769,1761033284430,-12082.41116454,0.000149,2]
[391964770,1761033284452,-200.47737513,0.000149,2]
[391964771,1761033284472,-1853.0273675,0.000149,2]
[391964772,1761033284497,-520.43650484,0.000149,2]
[391964773,1761033284517,-177.96470056,0.000149,2]
[391964774,1761033284540,-338.5410775,0.00014912,2]
[391964775,1761033284567,-1453.3776263,0.00014921,2]
[391964776,1761033284590,-338.5410775,0.00014925,2]
[391964777,1761033284613,-338.5410775,0.00014937,2]
[391964778,1761033284637,-1453.3776263,0.00014942,2]
[391964779,1761033284659,-338.5410775,0.0001495,2]
[391964780,1761033284680,-124.74529695,0.00014962,2]
[391967264,1761033858245,175.73,0.00013922,2]
[391967778,1761033908174,44.41435703,0.00013909,2]
[391967779,1761033908198,955.58564297,0.00013909,2]
[391968047,1761033988409,250.0,0.00013909,2]
[391968657,1761034029362,-186.25423959,0.00013926,2]
[391968683,1761034030856,-181.42275923,0.00013926,2]
[391968711,1761034032481,-228.56951333,0.00013926,2]
[391968771,1761034036208,-265.39791098,0.00013926,2]
[391968877,1761034042564,-266.11416166,0.00013926,2]
[391968911,1761034044600,-160.80539673,0.00013926,2]
[391969104,1761034080314,250.0,0.00013965,7]
[391969105,1761034089366,-36.75601848,0.00013926,2]
[391969106,1761034089389,-171.09616114,0.00014088,2]
[391969107,1761034210255,2376.36,0.00013899,2]
[391969113,1761034231487,-23.90383886,0.00014088,2]
[391969114,1761034231496,-195.0,0.00014169,2]
[391969115,1761034231506,-414.82021093,0.0001425,2]
[391969116,1761034231515,-493.1588286,0.00014535,2]
[391969117,1761034231525,-800.28866222,0.00014547,2]
[391969118,1761034231534,-181.92349875,0.000146,2]
[391969119,1761034231544,-608.342318,0.00014604,2]
[391969120,1761034231558,-151.0,0.00014671,2]
[391969121,1761034231569,-182.66281573,0.0001475,2]
[391969122,1761034231578,-636.50877359,0.0001475,2]
[391969123,1761034231587,-151.0,0.00014759,2]
[391969124,1761034231596,-1200.0,0.00014849,2]
[391969125,1761034231606,-585.57371042,0.00014849,2]
[391969126,1761034231622,-614.42628958,0.00014849,2]
[391969127,1761034231631,-300.0,0.00014849,2]
[391969128,1761034231640,-10021.04961313,0.0001485,2]
[391969129,1761034231650,-1109.64959894,0.00014878,2]
[391969130,1761034231659,-1109.64959887,0.0001488,2]
[391969131,1761034231668,-1109.64959887,0.00014883,2]
[391969132,1761034231677,-1109.64959887,0.00014885,2]
[391969133,1761034231687,-181.92349875,0.00014886,2]
[391969134,1761034231696,-1109.64959887,0.00014888,2]
[391969135,1761034231704,-150.0,0.0001489,2]
[391969136,1761034231714,-1109.64959887,0.0001489,2]
[391969137,1761034231722,-762.39,0.00014891,2]
[391969138,1761034231731,-151.0,0.00014891,2]
[391969139,1761034231739,-151.0,0.00014891,2]
[391969140,1761034231748,-151.0,0.00014891,2]
[391969141,1761034231756,-151.0,0.00014891,2]
[391969142,1761034231764,-151.0,0.00014891,2]
[391969143,1761034231775,-151.0,0.00014891,2]
[391969144,1761034231785,-151.0,0.00014891,2]
[391969145,1761034231796,-151.0,0.00014891,2]
[391969146,1761034231805,-151.0,0.00014891,2]
[391969147,1761034231816,-151.0,0.00014891,2]
[391969148,1761034231826,-151.0,0.00014891,2]
[391969149,1761034231836,-260.37150288,0.00014891,2]
[391969150,1761034231846,-151.0,0.00014891,2]
[391969151,1761034231856,-151.0,0.00014891,2]
[391969152,1761034231865,-151.0,0.00014891,2]
[391969153,1761034231874,-151.0,0.00014891,2]
[391969154,1761034231883,-151.0,0.00014891,2]
[391969155,1761034231892,-151.0,0.00014891,2]
[391969157,1761034231901,-151.0,0.00014891,2]
[391969159,1761034231910,-151.0,0.00014891,2]
[391969161,1761034231920,-151.0,0.00014891,2]
[391969179,1761034232064,-151.0,0.00014891,2]
[391969182,1761034232073,-151.0,0.00014891,2]
[391969185,1761034232083,-151.0,0.00014891,2]
[391969187,1761034232092,-151.0,0.00014891,2]
[391969189,1761034232101,-151.0,0.00014891,2]
[391969191,1761034232111,-1109.64959887,0.00014893,2]
[391969193,1761034232120,-1109.64959887,0.00014895,2]
[391969195,1761034232130,-1109.64959887,0.00014898,2]
[391969197,1761034232140,-178.92588708,0.00014899,2]
[391969199,1761034232150,-306.9316284,0.00014899,2]
[391969200,1761034232160,-500.0,0.00014899,2]
[391969201,1761034232170,-500.0,0.00014899,2]
[391969202,1761034232180,-500.0,0.00014899,2]
[391969203,1761034232189,-500.0,0.00014899,2]
[391969204,1761034232199,-500.0,0.00014899,2]
[391969205,1761034232210,-500.0,0.00014899,2]
[391969206,1761034232219,-500.0,0.00014899,2]
[391969207,1761034232229,-500.0,0.00014899,2]
[391969208,1761034232238,-500.0,0.00014899,2]
[391969209,1761034232248,-500.0,0.00014899,2]
[391969210,1761034232258,-500.0,0.00014899,2]
[391969211,1761034232267,-500.0,0.00014899,2]
[391969212,1761034232277,-500.0,0.00014899,2]
[391969213,1761034232286,-500.0,0.00014899,2]
[391969214,1761034232296,-500.0,0.00014899,2]
[391969215,1761034232305,-500.0,0.00014899,2]
[391969216,1761034232314,-500.0,0.00014899,2]
[391969217,1761034232324,-500.0,0.00014899,2]
[391969218,1761034232333,-500.0,0.00014899,2]
[391969219,1761034232342,-500.0,0.00014899,2]
[391969220,1761034232352,-500.0,0.00014899,2]
[391969221,1761034232363,-500.0,0.00014899,2]
[391969222,1761034232373,-500.0,0.00014899,2]
[391969223,1761034232382,-500.0,0.00014899,2]
[391969224,1761034232391,-500.0,0.00014899,2]
[391969225,1761034232402,-500.0,0.00014899,2]
[391969226,1761034232412,-500.0,0.00014899,2]
[391969227,1761034232421,-500.0,0.00014899,2]
[391969228,1761034232431,-500.0,0.00014899,2]
[391969229,1761034232442,-500.0,0.00014899,2]
[391969230,1761034232452,-500.0,0.00014899,2]
[391969231,1761034232462,-500.0,0.00014899,2]
[391969232,1761034232473,-500.0,0.00014899,2]
[391969233,1761034232485,-500.0,0.00014899,2]
[391969234,1761034232495,-500.0,0.00014899,2]
[391969235,1761034232506,-500.0,0.00014899,2]
[391969236,1761034232516,-500.0,0.00014899,2]
[391969237,1761034232526,-500.0,0.00014899,2]
[391969238,1761034232536,-500.0,0.00014899,2]
[391969239,1761034232546,-500.0,0.00014899,2]
[391969240,1761034232558,-500.0,0.00014899,2]
[391969241,1761034232567,-500.0,0.00014899,2]
[391969242,1761034232581,-500.0,0.00014899,2]
[391969243,1761034232590,-500.0,0.00014899,2]
[391969244,1761034232601,-500.0,0.00014899,2]
[391969245,1761034232610,-500.0,0.00014899,2]
[391969246,1761034232619,-500.0,0.00014899,2]
[391969247,1761034232628,-500.0,0.00014899,2]
[391969248,1761034232638,-500.0,0.00014899,2]
[391969249,1761034232647,-500.0,0.00014899,2]
[391969250,1761034232656,-500.0,0.00014899,2]
[391969251,1761034232666,-500.0,0.00014899,2]
[391969252,1761034232675,-500.0,0.00014899,2]
[391969253,1761034232685,-500.0,0.00014899,2]
[391969254,1761034232694,-500.0,0.00014899,2]
[391969255,1761034232704,-500.0,0.00014899,2]
[391969256,1761034232713,-500.0,0.00014899,2]
[391969257,1761034232723,-500.0,0.00014899,2]
[391969258,1761034232734,-500.0,0.00014899,2]
[391969259,1761034232744,-500.0,0.00014899,2]
[391969260,1761034232755,-500.0,0.00014899,2]
[391969261,1761034232764,-500.0,0.00014899,2]
[391969262,1761034232774,-500.0,0.00014899,2]
[391969263,1761034232787,-500.0,0.00014899,2]
[391969264,1761034232798,-500.0,0.00014899,2]
[391969265,1761034232808,-500.0,0.00014899,2]
[391969266,1761034232817,-500.0,0.00014899,2]
[391969267,1761034232827,-500.0,0.00014899,2]
[391969268,1761034232836,-500.0,0.00014899,2]
[391969269,1761034232845,-488.47619088,0.00014899,2]
[391969270,1761034232855,-500.0,0.00014899,2]
[391969271,1761034232865,-550.0,0.00014899,2]
[391969272,1761034232876,-500.0,0.00014899,2]
[391969273,1761034232885,-500.0,0.00014899,2]
[391969274,1761034232896,-500.0,0.00014899,2]
[391969275,1761034232905,-500.0,0.00014899,2]
[391969276,1761034232915,-500.0,0.00014899,2]
[391969277,1761034232925,-288.51721429,0.00014899,2]
[391969278,1761034232938,-211.48278571,0.00014899,2]
[391969279,1761034232947,-150.0,0.00014899,2]
[391969280,1761034232957,-151.68810834,0.00014899,2]
[391969281,1761034232968,-150.0,0.00014899,2]
[391969282,1761034232978,-150.0,0.00014899,2]
[391969283,1761034232988,-150.0,0.00014899,2]
[391969284,1761034232998,-287.04796797,0.00014899,2]
[391969285,1761034233008,-681.473574,0.000149,3]
[391969286,1761034233017,-500.0,0.000149,2]
[391969287,1761034233027,-907.918,0.000149,2]
[391969288,1761034233037,-200.28581928,0.000149,2]
[391969289,1761034233047,-60157.31224969,0.000149,2]
[391969290,1761034233056,-203.43415675,0.000149,2]
[391969291,1761034233066,-1235.35157834,0.000149,2]
[391969292,1761034233075,-346.9576699,0.000149,2]
[391969293,1761034233085,-364.372591,0.000149,2]
[391969294,1761034233095,-364.372591,0.000149,2]
[391969295,1761034233104,-364.372591,0.000149,2]
[391969296,1761034233114,-364.372591,0.000149,2]
[391969297,1761034233123,-364.372591,0.000149,2]
[391969298,1761034233132,-364.372591,0.000149,2]
[391969299,1761034233142,-364.372591,0.000149,2]
[391969300,1761034233151,-364.372591,0.000149,2]
[391969301,1761034233161,-177.96470056,0.000149,2]
[391969302,1761034233171,-1109.64959887,0.000149,2]
[391969303,1761034233180,-200.47737513,0.000149,2]
[391969304,1761034233190,-201.5261164,0.00014954,2]
[391969305,1761034233200,-203.6011519,0.00014954,2]
[391969306,1761034233211,-150.0,0.00014954,2]
[391969307,1761034233220,-150.0,0.00014954,2]
[391969308,1761034233230,-500.0,0.00014973,2]
[391969309,1761034233240,-500.0,0.00014973,2]
[391969310,1761034233249,-500.0,0.00014973,2]
[391969311,1761034233259,-500.0,0.00014973,2]
[391969312,1761034233268,-356.16454594,0.00014973,2]
[391969313,1761034233278,-161.08190711,0.00014973,2]
[391969314,1761034233287,-166.82321684,0.00014973,2]
[391969315,1761034233297,-500.8204809,0.00014973,2]
[391969316,1761034233306,-500.0,0.00014973,2]
[391969317,1761034233315,-177.45107487,0.00014973,2]
[391969318,1761034233325,-181.556921,0.00014976,2]
[391969319,1761034233334,-150.0,0.00014977,2]
[391969320,1761034233344,-500.0,0.00014977,2]
[391969321,1761034233353,-150.0,0.00014977,2]
[391969322,1761034233363,-150.0,0.00014977,2]
[391969323,1761034233373,-150.0,0.00014977,2]
[391969324,1761034233383,-500.0,0.00014977,2]
[391969325,1761034233392,-150.0,0.00014977,2]
[391969326,1761034233401,-500.0,0.00014977,2]
[391969327,1761034233410,-150.0,0.00014977,2]
[391969328,1761034233419,-500.0,0.00014977,2]
[391969329,1761034233428,-150.0,0.00014977,2]
[391969330,1761034233438,-500.0,0.00014977,2]
[391969331,1761034233447,-200.0,0.00014977,2]
[391969332,1761034233456,-4159.36259413,0.00014978,2]
[391969333,1761034233468,-5787.304048,0.00014978,2]
[391969334,1761034233483,-2272.296,0.00014978,2]
[391969335,1761034233494,-5393.15800006,0.00014978,2]
[391969336,1761034233505,-342.95739529,0.00014978,2]
[391969337,1761034233518,-1608.78589151,0.00014978,2]
[391969338,1761034233531,-2110.52202478,0.00014978,2]
[391969339,1761034233541,-9214.20867133,0.00014978,2]
[391969340,1761034233552,-1117.56297605,0.00014978,2]
[391969341,1761034233563,-5402.55860952,0.00014978,2]
[391969342,1761034233574,-75524.53157713,0.00014978,2]
[391969343,1761034233584,-2663.3549634,0.00014978,2]
[391969344,1761034233594,-151.0,0.00014978,2]
[391969345,1761034233603,-7758.2636811,0.00014978,2]
[391969346,1761034233613,-286.02245587,0.00014978,2]
[391969347,1761034233623,-364.372591,0.00014978,2]
[391969348,1761034233633,-364.372591,0.00014978,2]
[391969349,1761034233642,-364.372591,0.00014978,2]
[391969350,1761034233652,-364.372591,0.00014978,2]
[391969351,1761034233662,-364.372591,0.00014978,2]
[391969352,1761034233671,-364.372591,0.00014978,2]
[391969353,1761034233679,-364.372591,0.00014978,2]
[391969354,1761034233689,-364.372591,0.00014978,2]
[391969355,1761034233698,-500.0,0.00014983,2]
[391969356,1761034233708,-10852.03876924,0.00014984,2]
[391969357,1761034233719,-991.49022566,0.00014984,2]
[391969358,1761034233728,-29973.63852817,0.00014984,2]
[391969359,1761034233743,-2757.71367088,0.00014984,2]
[391969360,1761034233756,-846.46166189,0.00014984,2]
[391969361,1761034233767,-943.94291776,0.00014984,2]
[391969362,1761034233779,-7197.6983383,0.00014984,2]
[391969363,1761034233788,-364.372591,0.00014984,2]
[391969364,1761034233799,-137.92907069,0.00014984,2]
[391969365,1761034233810,-226.44352031,0.00014984,2]
[391969366,1761034233820,-109.53147969,0.00014984,2]
[391969367,1761034233832,-254.84111131,0.00014984,2]
[391969368,1761034233842,-364.3726,0.00014984,2]
[391969369,1761034233852,-209.38380504,0.0001499,2]
[391969370,1761034233861,-263.198,0.00014999,2]
[391969371,1761034233870,-500.0,0.00014999,2]
[391969372,1761034233880,-500.0,0.00014999,2]
[391969373,1761034233890,-500.0,0.00014999,2]
[391969374,1761034233899,-500.0,0.00014999,2]
[391969375,1761034233910,-0.66636791,0.00014999,2]
[391969376,1761034233922,-499.33363209,0.00014999,2]
[391969377,1761034233932,-173.07142333,0.00014999,2]
[391969378,1761034234049,-326.92857667,0.00014999,2]
[391969379,1761034234060,-500.0,0.00014999,2]
[391969380,1761034234069,-500.0,0.00014999,2]
[391969381,1761034234079,-500.0,0.00014999,2]
[391969382,1761034234089,-500.0,0.00014999,2]
[391969383,1761034234102,-549.94165707,0.00014999,2]
[391969384,1761034234112,-583.04,0.00014999,2]
[391969385,1761034234121,-583.04,0.00014999,2]
[391969386,1761034234131,-583.04,0.00014999,2]
[391969387,1761034234141,-583.04,0.00014999,2]
[391969388,1761034234152,-583.04,0.00014999,2]
[391969389,1761034234162,-583.04,0.00014999,2]
[391969390,1761034234172,-583.04,0.00014999,2]
[391969391,1761034234182,-583.04,0.00014999,2]
[391969392,1761034234191,-583.04,0.00014999,2]
[391969393,1761034234201,-583.04,0.00014999,2]
[391969394,1761034234211,-583.04,0.00014999,2]
[391969395,1761034234221,-583.04,0.00014999,2]
[391969396,1761034234231,-583.04,0.00014999,2]
[391969397,1761034234241,-583.04,0.00014999,2]
[391969398,1761034234251,-583.04,0.00014999,2]
[391969399,1761034234261,-583.04,0.00014999,2]
[391969400,1761034234271,-583.04,0.00014999,2]
[391969401,1761034234282,-583.04,0.00014999,2]
[391969402,1761034234292,-583.04,0.00014999,2]
[391969403,1761034234302,-583.04,0.00014999,2]
[391969404,1761034234312,-583.04,0.00014999,2]
[391969405,1761034234324,-583.04,0.00014999,2]
[391969406,1761034234333,-583.04,0.00014999,2]
[391969407,1761034234343,-583.09298475,0.00014999,2]
[391969408,1761034234353,-151.09277885,0.00014999,2]
[391969409,1761034234363,-11921.54424436,0.00015,2]
[391969410,1761034234375,-356830.521,0.00015,2]
[391969411,1761034234386,-15267.8983697,0.00015,2]
[391969412,1761034234397,-592.08682257,0.00015,2]
[391969413,1761034234467,-1332.14295962,0.00015,2]
[391969414,1761034234482,-313.490001,0.00015,2]
[391969415,1761034234766,-1019.87057724,0.00015,2]
[391969416,1761034234810,-370.53545966,0.00015,2]
[391969417,1761034234821,-693.64931429,0.00015,2]
[391969418,1761034234832,-7301.75959499,0.00015,2]
[391969419,1761034234844,-8637.71116931,0.00015,2]
[391969420,1761034234855,-33152.0769582,0.00015,2]
[391969436,1761034237505,-500.0,0.00014977,2]
[391969437,1761034237515,-276.34160634,0.00014977,2]
[391969438,1761034237524,-376.45259701,0.00014977,2]
[391969439,1761034237534,-500.0,0.00014977,2]
[391969440,1761034237543,-427.10891888,0.00014977,2]
[391969441,1761034237554,-155296.33726552,0.00015,2]
[391969442,1761034237564,-259.99888431,0.00015,2]
[391969443,1761034237575,-1143.2351105,0.00015,2]
[391969444,1761034237586,-1293.126025,0.00015,2]
[391969445,1761034237597,-536.3687251,0.00015,2]
[391969446,1761034237608,-694.22104089,0.00015,2]
[391969447,1761034237619,-397.45810599,0.00015,2]
[391969448,1761034237630,-317.43986012,0.00015,2]
[391969449,1761034237644,-1065.5,0.00015,2]
[391969450,1761034237655,-733.28999955,0.00015,2]
[391969480,1761034239511,-1807.6953352,0.00015,2]
[391969481,1761034239524,-533.0,0.00015,2]
[391969482,1761034239535,-27045.13894574,0.00015,2]
[391969483,1761034239546,-1146.89461072,0.00015,2]
[391969484,1761034239558,-500.0,0.00015,2]
[391969485,1761034239589,-1651.0174787,0.00015,2]
[391969490,1761034239884,-774.94564723,0.00015,2]
[391969491,1761034239895,-455.1,0.00015,2]
[391969492,1761034239908,-3885.99999999,0.00015,2]
[391969534,1761034242753,-639696.22313335,0.00015,2]
[391969535,1761034242765,-7432.53723145,0.00015,2]
[391969536,1761034242777,-408201.70202805,0.00015,2]
[391969537,1761034242788,-479.8475744,0.00015,2]
[391969538,1761034243008,-6856.67995562,0.00015,2]
[391969539,1761034243019,-877.73323689,0.00015,2]
[391969540,1761034243031,-390.56676311,0.00015,2]
[391969541,1761034243041,-1083.6498,0.00015,2]
[391969542,1761034243059,-1337.79988137,0.00015,2]
[391969575,1761034245669,-3800.0,0.00015,2]
[391969576,1761034245680,-10081.70453219,0.00015,2]
[391969577,1761034245691,-1123.71239335,0.00015,2]
[391969578,1761034245702,-431.885,0.00015,2]
[391969579,1761034245730,-269.24704914,0.00015,2]
[391969580,1761034245740,-1826.56410682,0.00015,2]
[391969581,1761034245751,-949.65,0.00015,2]
[391969582,1761034245762,-1773.39997,0.00015,2]
[391969583,1761034245791,-46862.77977328,0.00015,2]
[391969584,1761034246068,-222592.22550748,0.00015,2]
[391969590,1761034325489,200.0,0.00034502,30]
[391969591,1761034328174,200.0,0.00034502,30]
[391969592,1761034328925,250.0,0.00034502,30]
[391969593,1761034329443,500.0,0.00034502,30]
[391969594,1761034329510,250.0,0.00034502,30]
[391969595,1761034330032,500.0,0.00034502,30]
[391969596,1761034330139,250.0,0.00034502,30]
[391969597,1761034330696,500.0,0.00034502,30]
[391969598,1761034330811,250.0,0.00034502,30]
[391969599,1761034331428,250.0,0.00034502,30]
[391969600,1761034332166,250.0,0.00034502,30]
[391969601,1761034332780,250.0,0.00034502,30]
[391969602,1761034333417,250.0,0.00034502,30]
[391969603,1761034334137,151.0,0.00034502,30]
[391969604,1761034334791,151.0,0.00034502,30]
[391969605,1761034335484,151.0,0.00034502,30]
[391969606,1761034339567,200.0,0.00034502,30]
[391969607,1761034508556,2330.58313174,7.945e-05,2]
[391969608,1761034508583,2620.95579326,7.945e-05,2]
[391969609,1761034633179,154.99182914,0.00034502,30]
[391969610,1761034843243,151.0,0.00014285,2]
[391969611,1761034843269,56.852179,0.00014285,2]
[391969613,1761034974415,-236.620845,0.00013982,2]
[391969614,1761034977010,-202.35359626,0.00013982,2]
[391969615,1761034978730,-285.78371034,0.00013982,2]
[391969616,1761034983072,-306.92410812,0.00013982,2]
[391969617,1761034985566,-797.80029571,0.00013982,2]
[391969618,1761034988774,-189.78,0.00013982,2]
[391969619,1761035004391,-184.75224072,0.00013982,2]
[391969620,1761035006685,-207.76889484,0.00013982,2]
[391969621,1761035009707,-230.42002038,0.00013982,2]
[391969622,1761035013223,-176.25,0.00013982,2]
[391969623,1761035014135,166.66,0.00013699,2]
[391969624,1761035014323,166.66,0.00013895,2]
[391969625,1761035035974,199.72,0.00013699,2]
[391969629,1761035214407,-195.01483769,0.00013974,2]
[391969630,1761035217756,-300.0,0.00013974,2]